[Event "8th RTU Open 2018"]
[Site "Riga"]
[Date "2018.08.06"]
[Round "1"]
[White "Ivanov, Platon Jaan"]
[Black "Thybo, Jesper Sondergaard"]
[Result "0-1"]
[ECO "A40"]
[WhiteElo "2169"]
[BlackElo "2496"]
[Annotator "ChessBase"]
[PlyCount "150"]
[EventDate "2018.08.06"]
[EventType "swiss"]
[EventCountry "LAT"]
[SourceTitle "playchess.com"]
[Source "ChessBase"]
[SourceQuality "1"]
[TimeControl "5400+30"]

1. d4 {[%emt 0:00:00]} Nf6 {[%emt 0:00:00]} 2. c4 {[%emt 0:00:03]} e6 {[%emt 0:00:00]} 3. g3 {[%emt 0:00:29]} c5 {[%emt 0:00:30]} 4. Nf3 {[%emt 0:00:32]} cxd4 {[%emt 0:00:46]} 5. Nxd4 {[%emt 0:00:08]} Qc7 {[%emt 0:00:31]} 6. Nd2 {[%emt 0:04:12]} Nc6 {[%emt 0:08:37]} 7. Nb5 {[%emt 0:07:16]} Qb8 {[%emt 0:01:38]} 8. Bg2 {[%emt 0:05:38]} Be7 {[%emt 0:00:53]} 9. O-O {[%emt 0:02:38]} O-O {[%emt 0:03:26]} 10. Nc3 {[%emt 0:06:21]} a6 {[%emt 0:08:31]} 11. Nde4 {[%emt 0:04:42]} Nxe4 {[%emt 0:04:19]} 12. Nxe4 {[%emt 0:01:41]} d6 {[%emt 0:00:04]} 13. Bf4 {[%emt 0:06:03]} Rd8 {[%emt 0:02:41]} 14. Qd3 {[%emt 0:03:04]} Ne5 {[%emt 0:05:06]} 15. Qc3 {[%emt 0:03:29]} Ng6 {[%emt 0:00:46]} 16. Be3 {[%emt 0:06:23]} b5 {[%emt 0:06:12]} 17. h4 {[%emt 0:05:19]} bxc4 {[%emt 0:04:39]} 18. h5 {[%emt 0:00:18]} Nf8 {[%emt 0:02:16]} 19. h6 {[%emt 0:02:36]} e5 {[%emt 0:00:30]} 20. Bg5 {[%emt 0:09:58]} Bxg5 {[%emt 0:03:11]} 21. Nxg5 {[%emt 0:00:11]} d5 {[%emt 0:00:43]} 22. hxg7 {[%emt 0:02:41]} Ne6 {[%emt 0:01:36]} 23. Nxe6 {[%emt 0:02:51]} Bxe6 {[%emt 0:01:39]} 24. f4 {[%emt 0:02:05]} Qb6+ {[%emt 0:01:41]} 25. Kh1 {[%emt 0:00:33]} exf4 {[%emt 0:05:59]} 26. Rxf4 {[%emt 0:01:44]} Rab8 {[%emt 0:00:32]} 27. b3 {[%emt 0:04:56]} cxb3 {[%emt 0:03:05]} 28. axb3 {[%emt 0:00:08]} Qxb3 {[%emt 0:00:29]} 29. Qxb3 {[%emt 0:00:14]} Rxb3 {[%emt 0:00:04]} 30. Rxa6 {[%emt 0:00:12]} Rxg3 {[%emt 0:00:44]} 31. Rd4 {[%emt 0:01:11]} Rg4 {[%emt 0:06:05]} 32. Raa4 {[%emt 0:01:19]} Rxd4 {[%emt 0:03:09]} 33. Rxd4 {[%emt 0:00:08]} f5 {[%emt 0:00:39]} 34. Kh2 {[%emt 0:02:06]} Kxg7 {[%emt 0:00:08]} 35. Kg3 {[%emt 0:00:43]} Kf6 {[%emt 0:03:05]} 36. Kf4 {[%emt 0:00:33]} Rc8 {[%emt 0:01:34]} 37. Bf3 {[%emt 0:03:17]} Rc4 {[%emt 0:01:39]} 38. e3 {[%emt 0:00:10]} Bf7 {[%emt 0:05:07]} 39. Be2 {[%emt 0:00:40]} Rc2 {[%emt 0:00:57]} 40. Bf3 {[%emt 0:01:33]} Rc4 {[%emt 0:00:21]} 41. Be2 {[%emt 0:00:10]} Rc1 {[%emt 0:00:39]} 42. Ra4 {[%emt 0:01:58]} Rh1 {[%emt 0:03:54]} 43. Ra6+ {[%emt 0:02:19]} Be6 {[%emt 0:00:04]} 44. Bf3 {[%emt 0:00:06]} Rf1 {[%emt 0:00:30]} 45. Rb6 {[%emt 0:00:33]} h5 {[%emt 0:00:27]} 46. Kg3 {[%emt 0:01:01]} Ke5 {[%emt 0:07:10]} 47. Bxh5 {[%emt 0:00:49]} Bd7 {[%emt 0:00:39]} 48. Rb4 {[%emt 0:00:38]} Ra1 {[%emt 0:00:29]} 49. Bf3 {[%emt 0:01:12]} Ba4 {[%emt 0:00:50]} 50. Rd4 {[%emt 0:00:25]} Bb3 {[%emt 0:00:29]} 51. Rd3 {[%emt 0:01:43]} Bc4 {[%emt 0:00:44]} 52. Rd1 {[%emt 0:00:19]} Ra3 {[%emt 0:00:36]} 53. Kf2 {[%emt 0:00:16]} Bd3 {[%emt 0:00:52]} 54. Rd2 {[%emt 0:01:52]} Rb3 {[%emt 0:00:44]} 55. Bd1 {[%emt 0:00:48]} Ra3 {[%emt 0:00:22]} 56. Bf3 {[%emt 0:00:19]} Rc3 {[%emt 0:00:04]} 57. Rb2 {[%emt 0:00:48]} Rc1 {[%emt 0:01:18]} 58. Rd2 {[%emt 0:01:05]} Bc4 {[%emt 0:00:07]} 59. Rd4 {[%emt 0:00:35]} Rc2+ {[%emt 0:00:20]} 60. Kg3 {[%emt 0:00:07]} Rb2 {[%emt 0:00:22]} 61. Rd1 {[%emt 0:00:43]} Rb3 {[%emt 0:01:57]} 62. Kf2 {[%emt 0:00:06]} Bd3 {[%emt 0:00:02]} 63. Rd2 {[%emt 0:00:10]} Ra3 {[%emt 0:00:21]} 64. Rb2 {[%emt 0:00:29]} Ra8 {[%emt 0:00:34]} 65. Rd2 {[%emt 0:00:41]} Be4 {[%emt 0:00:04]} 66. Bxe4 {[%emt 0:01:06]} fxe4 {[%emt 0:00:03]} 67. Ke2 {[%emt 0:00:21]} Rh8 {[%emt 0:00:17]} 68. Rd4 {[%emt 0:00:29]} Rh2+ {[%emt 0:00:33]} 69. Ke1 {[%emt 0:00:21]} Ra2 {[%emt 0:00:21]} 70. Rd1 {[%emt 0:00:55]} Kf5 {[%emt 0:01:08]} 71. Rxd5+ {[%emt 0:00:21]} Kg4 {[%emt 0:00:01]} 72. Rd2 {[%emt 0:00:17]} Rxd2 {[%emt 0:00:13]} 73. Kxd2 {[%emt 0:00:06]} Kf3 {[%emt 0:00:02]} 74. Kd1 {[%emt 0:00:10]} Kxe3 {[%emt 0:00:03]} 75. Ke1 {[%emt 0:00:06]} Kd3 {[%emt 0:00:06]} 0-1

[Event "8th RTU Open 2018"]
[Site "Riga"]
[Date "2018.08.06"]
[Round "1"]
[White "Farmani Anosheh, Yasha"]
[Black "Kaczur, Florian"]
[Result "0-1"]
[ECO "A50"]
[WhiteElo "2168"]
[BlackElo "2482"]
[Annotator "ChessBase"]
[PlyCount "82"]
[EventDate "2018.08.06"]
[EventType "swiss"]
[EventCountry "LAT"]
[SourceTitle "playchess.com"]
[Source "ChessBase"]
[SourceQuality "1"]
[TimeControl "5400+30"]

1. d4 {[%emt 0:00:00]} Nf6 {[%emt 0:00:00]} 2. c4 {[%emt 0:00:00]} b6 {[%emt 0:00:11]} 3. Nf3 {[%emt 0:04:44]} Bb7 {[%emt 0:02:37]} 4. Nc3 {[%emt 0:05:15]} Ne4 {[%emt 0:02:55]} 5. Qc2 {[%emt 0:02:55]} Nxc3 {[%emt 0:01:46]} 6. bxc3 {[%emt 0:00:59]} g6 {[%emt 0:04:14]} 7. e4 {[%emt 0:04:10]} Bg7 {[%emt 0:00:14]} 8. h4 {[%emt 0:02:03]} h6 {[%emt 0:01:40]} 9. Bd3 {[%emt 0:13:51]} d6 {[%emt 0:02:08]} 10. e5 {[%emt 0:13:04]} dxe5 {[%emt 0:13:19]} 11. Bxg6 {[%emt 0:12:37]} Qd6 {[%emt 0:16:41]} 12. Be4 {[%emt 0:05:05]} Bxe4 {[%emt 0:10:17]} 13. Qxe4 {[%emt 0:00:28]} Nc6 {[%emt 0:01:35]} 14. Ba3 {[%emt 0:10:44]} Qg6 {[%emt 0:01:27]} 15. Qxg6 {[%emt 0:00:07]} fxg6 {[%emt 0:00:06]} 16. O-O-O {[%emt 0:10:58]} Na5 {[%emt 0:05:48]} 17. Nxe5 {[%emt 0:08:13]} Bxe5 {[%emt 0:00:08]} 18. dxe5 {[%emt 0:00:02]} Nxc4 {[%emt 0:00:08]} 19. Bb2 {[%emt 0:00:50]} O-O {[%emt 0:08:12]} 20. f3 {[%emt 0:01:21]} Rad8 {[%emt 0:02:00]} 21. Rhe1 {[%emt 0:02:13]} b5 {[%emt 0:08:18]} 22. Rd4 {[%emt 0:00:23]} c5 {[%emt 0:00:54]} 23. Rde4 {[%emt 0:00:05]} Rd5 {[%emt 0:00:19]} 24. R4e2 {[%emt 0:01:12]} Rfd8 {[%emt 0:00:15]} 25. Ba1 {[%emt 0:00:19]} a5 {[%emt 0:01:47]} 26. e6 {[%emt 0:00:05]} a4 {[%emt 0:00:08]} 27. g4 {[%emt 0:00:39]} Rd2 {[%emt 0:04:06]} 28. Rxd2 {[%emt 0:01:07]} Rxd2 {[%emt 0:00:08]} 29. Rd1 {[%emt 0:00:29]} Rxa2 {[%emt 0:01:52]} 30. Kb1 {[%emt 0:00:00]} Re2 {[%emt 0:01:49]} 31. Rd5 {[%emt 0:00:01]} Rxe6 {[%emt 0:00:46]} 32. Rxc5 {[%emt 0:00:03]} Re1+ {[%emt 0:00:07]} 33. Ka2 {[%emt 0:00:13]} Re2+ {[%emt 0:00:05]} 34. Kb1 {[%emt 0:00:31]} Na3+ {[%emt 0:00:31]} 35. Kc1 {[%emt 0:00:03]} Rc2+ {[%emt 0:02:16]} 36. Kd1 {[%emt 0:00:15]} Rf2 {[%emt 0:00:29]} 37. c4 {[%emt 0:01:36]} Rf1+ {[%emt 0:00:38]} 38. Ke2 {[%emt 0:00:06]} Rxa1 {[%emt 0:00:17]} 39. cxb5 {[%emt 0:00:03]} Rb1 {[%emt 0:00:07]} 40. Rc8+ {[%emt 0:00:32]} Kf7 {[%emt 0:00:09]} 41. Ra8 {[%emt 0:00:02]} Nxb5 {[%emt 0:00:06]} 0-1

[Event "8th RTU Open 2018"]
[Site "Riga"]
[Date "2018.08.06"]
[Round "1"]
[White "Poysti, Nathanael Nicolai"]
[Black "Yankelevich, Lev"]
[Result "0-1"]
[ECO "C55"]
[WhiteElo "2136"]
[BlackElo "2420"]
[Annotator "NA RC"]
[PlyCount "94"]
[EventDate "2018.08.06"]
[EventType "swiss"]
[EventCountry "LAT"]
[SourceTitle "playchess.com"]
[Source "ChessBase"]
[SourceQuality "1"]
[TimeControl "5400+30"]

1. e4 {[%emt 0:00:00]} e5 {[%emt 0:00:00]} 2. Nf3 {[%emt 0:00:00]} Nc6 {[%emt 0:00:00]} 3. d4 {[%emt 0:00:00]} exd4 {[%emt 0:00:00]} 4. Bc4 {[%emt 0:00:00]} Nf6 {[%emt 0:01:48]} 5. e5 {[%emt 0:00:00]} d5 {[%emt 0:00:16]} 6. Bb5 {[%emt 0:00:04]} Ne4 {[%emt 0:00:14]} 7. Nxd4 {[%emt 0:00:40]} Bc5 {[%emt 0:01:18]} 8. O-O {[%emt 0:02:09]} O-O {[%emt 0:03:53]} 9. Nxc6 {[%emt 0:05:57]} bxc6 {[%emt 0:01:43]} 10. Bd3 {[%emt 0:13:18]} f5 {[%emt 0:06:18]} 11. Nd2 {[%emt 0:19:09]} Qe7 {[%emt 0:15:09]} 12. Nf3 {[%emt 0:03:48]} g5 {[%emt 0:09:40]} 13. Bxe4 {[%emt 0:11:21]} fxe4 {[%emt 0:00:04]} 14. Bxg5 {[%emt 0:00:37]} Qe8 {[%emt 0:00:27]} 15. Nd4 {[%emt 0:03:06]} Qg6 {[%emt 0:08:05]} 16. Bf6 {[%emt 0:01:57]} Bh3 {[%emt 0:20:32]} 17. g3 {[%emt 0:00:06]} Bxf1 {[%emt 0:02:15]} 18. Kxf1 {[%emt 0:00:54]} Rxf6 {[%emt 0:01:14]} 19. exf6 {[%emt 0:00:15]} Qxf6 {[%emt 0:00:34]} 20. c3 {[%emt 0:00:15]} Rf8 {[%emt 0:00:30]} 21. Qd2 {[%emt 0:03:26]} Bb6 {[%emt 0:00:08]} 22. b4 {[%emt 0:00:21]} c5 {[%emt 0:00:52]} 23. bxc5 {[%emt 0:01:37]} Bxc5 {[%emt 0:00:05]} 24. Rd1 {[%emt 0:07:57]} Bb6 {[%emt 0:00:13]} 25. Re1 {[%emt 0:05:24]} c5 {[%emt 0:00:26]} 26. Nc2 {[%emt 0:00:40]} Qe6 {[%emt 0:03:26]} 27. Qe3 {[%emt 0:11:40]} Qh3+ {[%emt 0:01:56]} 28. Kg1 {[%emt 0:00:15]} Rf5 {[%emt 0:00:07]} 29. f4 {[%emt 0:01:51]} Rf8 {[%emt 0:10:25]} 30. c4 {[%emt 0:01:59]} Qf5 {[%emt 0:00:04]} 31. Kg2 {[%emt 0:00:36]} Ba5 {[%emt 0:02:33]} 32. Re2 {[%emt 0:00:25]} d4 {[%emt 0:00:04]} 33. Qxe4 {[%emt 0:00:09]} Qxe4+ {[%emt 0:00:31]} 34. Rxe4 {[%emt 0:00:03]} Rb8 {[%emt 0:00:02]} 35. Ne1 {[%emt 0:04:39]} Rb4 {[%emt 0:01:11]} 36. Nd3 {[%emt 0:00:27]} Rxc4 {[%emt 0:00:05]} 37. Re5 {[%emt 0:00:48]} Bb6 {[%emt 0:00:22]} 38. Re8+ {[%emt 0:00:41]} Kg7 {[%emt 0:00:05]} 39. Ne5 {[%emt 0:00:13]} Rc2+ {[%emt 0:00:25]} 40. Kf3 {[%emt 0:00:08]} c4 {[%emt 0:00:53]} 41. g4 {[%emt 0:00:04]} d3 {[%emt 0:00:10]} 42. g5 {[%emt 0:00:39]} Rf2+ {[%emt 0:00:13]} 43. Ke4 {[%emt 0:01:59]} d2 {[%emt 0:00:03]} 44. Re7+ {[%emt 0:00:07]} Kf8 {[%emt 0:00:28]} 45. Rd7 {[%emt 0:01:48]} c3 {[%emt 0:00:23]} 46. Ng4 {[%emt 0:00:21]} Re2+ {[%emt 0:00:34]} 47. Kf5 {[%emt 0:00:06]} Re7 {[%emt 0:00:04]} 0-1

[Event "8th RTU Open 2018"]
[Site "Riga"]
[Date "2018.08.06"]
[Round "1"]
[White "Sanchez Ruesga, Hector"]
[Black "Ruiz Castillo, Joshua Daniel"]
[Result "0-1"]
[ECO "E01"]
[WhiteElo "2134"]
[BlackElo "2415"]
[Annotator "NA"]
[PlyCount "110"]
[EventDate "2018.08.06"]
[EventType "swiss"]
[EventCountry "LAT"]
[SourceTitle "playchess.com"]
[Source "ChessBase"]
[SourceQuality "1"]
[TimeControl "5400+30"]

1. d4 {[%emt 0:00:00]} Nf6 {[%emt 0:00:01]} 2. c4 {[%emt 0:00:10]} e6 {[%emt 0:00:11]} 3. g3 {[%emt 0:00:25]} d5 {[%emt 0:00:07]} 4. Bg2 {[%emt 0:00:11]} Bb4+ {[%emt 0:00:05]} 5. Bd2 {[%emt 0:00:18]} Be7 {[%emt 0:00:07]} 6. Nf3 {[%emt 0:00:45]} O-O {[%emt 0:00:06]} 7. O-O {[%emt 0:00:27]} Nbd7 {[%emt 0:00:31]} 8. cxd5 {[%emt 0:00:36]} exd5 {[%emt 0:00:07]} 9. Nc3 {[%emt 0:00:46]} c6 {[%emt 0:00:10]} 10. Bf4 {[%emt 0:01:13]} Re8 {[%emt 0:00:42]} 11. Ne5 {[%emt 0:07:35]} Nf8 {[%emt 0:05:05]} 12. f3 {[%emt 0:05:51]} Bd6 {[%emt 0:17:50]} 13. Nd3 {[%emt 0:03:39]} Ne6 {[%emt 0:00:24]} 14. Be3 {[%emt 0:09:15]} Bc7 {[%emt 0:10:48]} 15. Bf2 {[%emt 0:00:45]} Bb6 {[%emt 0:00:06]} 16. e3 {[%emt 0:04:55]} Ng5 {[%emt 0:00:57]} 17. Nf4 {[%emt 0:06:29]} Bc7 {[%emt 0:00:18]} 18. Kh1 {[%emt 0:01:13]} h5 {[%emt 0:04:19]} 19. Qd2 {[%emt 0:05:11]} Bf5 {[%emt 0:01:52]} 20. Rae1 {[%emt 0:02:34]} Qd7 {[%emt 0:05:58]} 21. Nce2 {[%emt 0:06:09]} Nh3 {[%emt 0:03:33]} 22. Nxh3 {[%emt 0:03:36]} Bxh3 {[%emt 0:01:04]} 23. Qd3 {[%emt 0:04:15]} Bf5 {[%emt 0:13:14]} 24. Qd2 {[%emt 0:00:08]} Bh3 {[%emt 0:03:26]} 25. Qd3 {[%emt 0:00:08]} Ba5 {[%emt 0:08:43]} 26. Nc3 {[%emt 0:01:19]} Bf5 {[%emt 0:00:12]} 27. Qd2 {[%emt 0:04:04]} Bh3 {[%emt 0:02:10]} 28. Qd3 {[%emt 0:00:55]} Re7 {[%emt 0:02:05]} 29. a3 {[%emt 0:00:19]} Rae8 {[%emt 0:00:23]} 30. b4 {[%emt 0:00:36]} Bc7 {[%emt 0:00:04]} 31. Bg1 {[%emt 0:09:15]} Nh7 {[%emt 0:00:45]} 32. Qc2 {[%emt 0:04:54]} Bxg2+ {[%emt 0:03:44]} 33. Qxg2 {[%emt 0:00:42]} f5 {[%emt 0:00:02]} 34. Rb1 {[%emt 0:01:32]} a6 {[%emt 0:01:11]} 35. Rfc1 {[%emt 0:00:25]} Re6 {[%emt 0:01:19]} 36. Qc2 {[%emt 0:01:19]} Rh6 {[%emt 0:00:30]} 37. a4 {[%emt 0:05:03]} h4 {[%emt 0:01:02]} 38. gxh4 {[%emt 0:00:16]} Rxh4 {[%emt 0:00:07]} 39. b5 {[%emt 0:01:30]} axb5 {[%emt 0:00:05]} 40. axb5 {[%emt 0:00:06]} Re6 {[%emt 0:01:50]} 41. bxc6 {[%emt 0:01:58]} bxc6 {[%emt 0:00:00]} 42. Rb7 {[%emt 0:03:07]} Qd8 {[%emt 0:04:14]} 43. Ra1 {[%emt 0:01:33]} Reh6 {[%emt 0:02:01]} 44. f4 {[%emt 0:02:09]} Nf6 {[%emt 0:02:12]} 45. Raa7 {[%emt 0:00:38]} Ne8 {[%emt 0:00:01]} 46. Qxf5 {[%emt 0:00:17]} Nd6 {[%emt 0:00:07]} 47. Qb1 {[%emt 0:00:13]} Nxb7 {[%emt 0:00:05]} 48. Qxb7 {[%emt 0:00:34]} Rg4 {[%emt 0:01:06]} 49. Qxc7 {[%emt 0:00:26]} Qh4 {[%emt 0:00:08]} 50. Qf7+ {[%emt 0:01:21]} Kh7 {[%emt 0:00:04]} 51. Qf5+ {[%emt 0:01:10]} Rhg6 {[%emt 0:00:36]} 52. Ne2 {[%emt 0:00:30]} Qh3 {[%emt 0:00:07]} 53. Ng3 {[%emt 0:02:05]} Rxg3 {[%emt 0:00:04]} 54. Qxh3+ {[%emt 0:00:05]} Rxh3 {[%emt 0:00:02]} 55. Rc7 {[%emt 0:01:12]} Rf3 {[%emt 0:00:07]} 0-1

[Event "8th RTU Open 2018"]
[Site "Riga"]
[Date "2018.08.06"]
[Round "1"]
[White "Zhukov, Anton"]
[Black "Berzinsh, Roland"]
[Result "1/2-1/2"]
[ECO "D20"]
[WhiteElo "2129"]
[BlackElo "2408"]
[Annotator "NA"]
[PlyCount "117"]
[EventDate "2018.08.06"]
[EventType "swiss"]
[EventCountry "LAT"]
[SourceTitle "playchess.com"]
[Source "ChessBase"]
[SourceQuality "1"]
[TimeControl "5400+30"]

1. d4 {[%emt 0:00:00]} d5 {[%emt 0:00:00]} 2. c4 {[%emt 0:00:00]} dxc4 {[%emt 0:00:00]} 3. e4 {[%emt 0:00:00]} Nc6 {[%emt 0:00:11]} 4. Be3 {[%emt 0:08:14]} Nf6 {[%emt 0:00:30]} 5. Nc3 {[%emt 0:02:56]} e5 {[%emt 0:00:24]} 6. d5 {[%emt 0:01:15]} Na5 {[%emt 0:00:16]} 7. Qa4+ {[%emt 0:05:37]} c6 {[%emt 0:02:50]} 8. dxc6 {[%emt 0:00:55]} Nxc6 {[%emt 0:00:08]} 9. Rd1 {[%emt 0:02:29]} Bd7 {[%emt 0:04:46]} 10. Qxc4 {[%emt 0:04:46]} Rc8 {[%emt 0:00:50]} 11. Qd3 {[%emt 0:06:30]} Ng4 {[%emt 0:25:44]} 12. Bg5 {[%emt 0:08:33]} Be7 {[%emt 0:07:30]} 13. Bxe7 {[%emt 0:00:27]} Qxe7 {[%emt 0:00:07]} 14. Be2 {[%emt 0:00:35]} Nf6 {[%emt 0:00:07]} 15. Nf3 {[%emt 0:01:05]} O-O {[%emt 0:00:14]} 16. O-O {[%emt 0:00:07]} Bg4 {[%emt 0:03:09]} 17. Nd2 {[%emt 0:12:18]} Rfd8 {[%emt 0:02:11]} 18. Qb1 {[%emt 0:01:00]} Nd4 {[%emt 0:11:36]} 19. Bxg4 {[%emt 0:00:47]} Nxg4 {[%emt 0:00:08]} 20. h3 {[%emt 0:03:50]} Nf6 {[%emt 0:04:50]} 21. Rfe1 {[%emt 0:04:53]} Qb4 {[%emt 0:01:54]} 22. Nf1 {[%emt 0:02:37]} g6 {[%emt 0:03:57]} 23. Ne3 {[%emt 0:00:19]} Kg7 {[%emt 0:00:06]} 24. Ned5 {[%emt 0:01:09]} Nxd5 {[%emt 0:00:11]} 25. Nxd5 {[%emt 0:00:36]} Qc4 {[%emt 0:04:51]} 26. Qd3 {[%emt 0:06:13]} Qxd3 {[%emt 0:02:21]} 27. Rxd3 {[%emt 0:00:02]} Rc2 {[%emt 0:00:14]} 28. Rb1 {[%emt 0:00:06]} f5 {[%emt 0:03:13]} 29. Re3 {[%emt 0:07:10]} Ne2+ {[%emt 0:01:58]} 30. Kf1 {[%emt 0:00:33]} Nf4 {[%emt 0:00:07]} 31. Nxf4 {[%emt 0:01:41]} exf4 {[%emt 0:00:23]} 32. Rc3 {[%emt 0:01:30]} Rdd2 {[%emt 0:01:04]} 33. Rxc2 {[%emt 0:00:06]} Rxc2 {[%emt 0:00:05]} 34. exf5 {[%emt 0:00:05]} g5 {[%emt 0:02:39]} 35. Rd1 {[%emt 0:02:19]} Rxb2 {[%emt 0:00:41]} 36. Rd7+ {[%emt 0:00:06]} Kf6 {[%emt 0:00:09]} 37. Rxh7 {[%emt 0:00:07]} a5 {[%emt 0:03:44]} 38. a4 {[%emt 0:01:08]} Kxf5 {[%emt 0:00:20]} 39. g3 {[%emt 0:01:41]} Ke4 {[%emt 0:01:56]} 40. Rc7 {[%emt 0:01:23]} Rb1+ {[%emt 0:04:10]} 41. Kg2 {[%emt 0:03:36]} f3+ {[%emt 0:00:12]} 42. Kh2 {[%emt 0:00:07]} Rf1 {[%emt 0:04:01]} 43. Re7+ {[%emt 0:05:59]} Kd4 {[%emt 0:00:32]} 44. g4 {[%emt 0:01:13]} Rxf2+ {[%emt 0:00:23]} 45. Kg3 {[%emt 0:00:05]} Ra2 {[%emt 0:02:34]} 46. Kxf3 {[%emt 0:00:47]} Ra3+ {[%emt 0:00:04]} 47. Kg2 {[%emt 0:00:37]} Rxa4 {[%emt 0:00:05]} 48. Rxb7 {[%emt 0:00:05]} Rb4 {[%emt 0:00:19]} 49. Rg7 {[%emt 0:01:14]} Rb5 {[%emt 0:01:34]} 50. Ra7 {[%emt 0:00:52]} Kc4 {[%emt 0:00:34]} 51. h4 {[%emt 0:00:24]} Kb4 {[%emt 0:03:24]} 52. hxg5 {[%emt 0:02:34]} Rxg5 {[%emt 0:00:53]} 53. Kg3 {[%emt 0:00:05]} a4 {[%emt 0:00:11]} 54. Kf4 {[%emt 0:00:14]} Ra5 {[%emt 0:01:03]} 55. Rxa5 {[%emt 0:01:48]} Kxa5 {[%emt 0:00:05]} 56. g5 {[%emt 0:00:05]} a3 {[%emt 0:00:06]} 57. g6 {[%emt 0:00:03]} a2 {[%emt 0:00:05]} 58. g7 {[%emt 0:00:03]} a1=Q {[%emt 0:00:06]} 59. g8=Q {[%emt 0:00:06]} 1/2-1/2

[Event "8th RTU Open 2018"]
[Site "Riga"]
[Date "2018.08.06"]
[Round "1"]
[White "Polyakov, Fedor"]
[Black "Bernotas, Arturs"]
[Result "0-1"]
[ECO "E00"]
[WhiteElo "2126"]
[BlackElo "2406"]
[Annotator "NA"]
[PlyCount "121"]
[EventDate "2018.08.06"]
[EventType "swiss"]
[EventCountry "LAT"]
[SourceTitle "playchess.com"]
[Source "ChessBase"]
[SourceQuality "1"]
[TimeControl "5400+30"]

1. d4 {[%emt 0:00:00]} Nf6 {[%emt 0:00:07]} 2. c4 {[%emt 0:00:00]} e6 {[%emt 0:00:13]} 3. a3 {[%emt 0:00:00]} d5 {[%emt 0:02:19]} 4. Nc3 {[%emt 0:00:00]} c5 {[%emt 0:03:52]} 5. e3 {[%emt 0:01:01]} cxd4 {[%emt 0:01:08]} 6. exd4 {[%emt 0:00:07]} Be7 {[%emt 0:00:27]} 7. Nf3 {[%emt 0:01:48]} O-O {[%emt 0:00:19]} 8. Bd3 {[%emt 0:07:06]} b6 {[%emt 0:02:14]} 9. O-O {[%emt 0:03:16]} Ba6 {[%emt 0:02:33]} 10. cxd5 {[%emt 0:05:07]} Bxd3 {[%emt 0:00:58]} 11. Qxd3 {[%emt 0:00:08]} Nxd5 {[%emt 0:00:16]} 12. Qe4 {[%emt 0:01:16]} Nc6 {[%emt 0:01:13]} 13. Nxd5 {[%emt 0:07:13]} exd5 {[%emt 0:00:11]} 14. Qd3 {[%emt 0:03:05]} Bf6 {[%emt 0:01:50]} 15. Bf4 {[%emt 0:01:26]} Re8 {[%emt 0:01:52]} 16. Rfe1 {[%emt 0:01:17]} Qd7 {[%emt 0:00:20]} 17. Be5 {[%emt 0:11:04]} Be7 {[%emt 0:10:12]} 18. Rac1 {[%emt 0:04:59]} Rac8 {[%emt 0:08:48]} 19. b4 {[%emt 0:09:21]} Bf8 {[%emt 0:13:19]} 20. h3 {[%emt 0:09:55]} f6 {[%emt 0:10:59]} 21. Bf4 {[%emt 0:02:36]} Ne7 {[%emt 0:00:33]} 22. Rxc8 {[%emt 0:11:43]} Rxc8 {[%emt 0:01:56]} 23. Rc1 {[%emt 0:01:53]} Rxc1+ {[%emt 0:03:00]} 24. Bxc1 {[%emt 0:00:00]} Qc6 {[%emt 0:00:46]} 25. Bd2 {[%emt 0:01:40]} b5 {[%emt 0:03:52]} 26. Ne1 {[%emt 0:04:42]} Nc8 {[%emt 0:00:28]} 27. Qc3 {[%emt 0:01:57]} Qxc3 {[%emt 0:02:25]} 28. Bxc3 {[%emt 0:00:01]} Nb6 {[%emt 0:00:09]} 29. Nc2 {[%emt 0:01:24]} g6 {[%emt 0:00:47]} 30. Bd2 {[%emt 0:01:18]} Bd6 {[%emt 0:00:24]} 31. Kf1 {[%emt 0:01:43]} Nc4 {[%emt 0:00:19]} 32. Ke2 {[%emt 0:02:30]} Kf7 {[%emt 0:00:11]} 33. Bc1 {[%emt 0:03:07]} Ke6 {[%emt 0:00:19]} 34. Kf3 {[%emt 0:00:23]} Bf8 {[%emt 0:01:06]} 35. Ne1 {[%emt 0:02:26]} Kd7 {[%emt 0:02:26]} 36. Nc2 {[%emt 0:01:21]} Kc6 {[%emt 0:00:31]} 37. Ke2 {[%emt 0:01:01]} Bd6 {[%emt 0:00:32]} 38. Kf3 {[%emt 0:00:34]} Kd7 {[%emt 0:03:19]} 39. Bf4 {[%emt 0:00:17]} Bf8 {[%emt 0:00:43]} 40. Bb8 {[%emt 0:00:36]} a6 {[%emt 0:00:19]} 41. Bf4 {[%emt 0:00:02]} Ke6 {[%emt 0:01:00]} 42. Bc1 {[%emt 0:00:21]} h5 {[%emt 0:01:37]} 43. g4 {[%emt 0:01:01]} Nd6 {[%emt 0:02:36]} 44. Ne1 {[%emt 0:00:27]} Nc4 {[%emt 0:01:52]} 45. Nd3 {[%emt 0:00:45]} hxg4+ {[%emt 0:00:19]} 46. hxg4 {[%emt 0:00:11]} g5 {[%emt 0:00:05]} 47. Ne1 {[%emt 0:00:47]} Be7 {[%emt 0:00:31]} 48. Nc2 {[%emt 0:00:26]} Bd6 {[%emt 0:00:26]} 49. Ne1 {[%emt 0:00:28]} Bc7 {[%emt 0:01:23]} 50. Nc2 {[%emt 0:00:40]} Bb6 {[%emt 0:00:17]} 51. Kg3 {[%emt 0:00:22]} Kf7 {[%emt 0:00:57]} 52. Kf3 {[%emt 0:00:35]} Nd6 {[%emt 0:00:47]} 53. Ke2 {[%emt 0:00:32]} Ke6 {[%emt 0:00:33]} 54. f3 {[%emt 0:00:22]} Bd8 {[%emt 0:00:17]} 55. Na1 {[%emt 0:00:37]} a5 {[%emt 0:01:07]} 56. Nc2 {[%emt 0:00:29]} Nc4 {[%emt 0:00:28]} 57. Ne3 {[%emt 0:00:33]} Bb6 {[%emt 0:01:16]} 58. Nc2 {[%emt 0:00:10]} Bc7 {[%emt 0:00:06]} 59. Ne1 {[%emt 0:00:49]} Bd6 {[%emt 0:00:23]} 60. Nc2 {[%emt 0:00:26]} a4 {[%emt 0:01:48]} 61. Ne1 {Ke5} 0-1